[Event "World Junior U20 Girls 2018"]
[Site "Gebze"]
[Date "2018.09.08"]
[Round "5"]
[White "Tokhirjonova, Gulrukhbegim"]
[Black "Varshini, V."]
[Result "1-0"]
[ECO "B81"]
[WhiteElo "2369"]
[BlackElo "2173"]
[Annotator "NA"]
[PlyCount "67"]
[EventDate "2018.09.05"]
[EventType "swiss"]
[EventCountry "TUR"]
[SourceTitle "playchess.com"]
[Source "ChessBase"]
[SourceQuality "1"]
[TimeControl "40/5400+30:1800+30"]

1. e4 {[%emt 0:01:30]} c5 {[%emt 0:00:30]} 2. Nf3 {[%emt 0:00:30]} d6 {[%emt 0:00:00]} 3. d4 {[%emt 0:00:00]} cxd4 {[%emt 0:00:00]} 4. Nxd4 {[%emt 0:00:00]} Nf6 {[%emt 0:00:00]} 5. Nc3 {[%emt 0:00:30]} a6 {[%emt 0:00:00]} 6. h3 {[%emt 0:00:30]} e6 {[%emt 0:00:30]} 7. g4 {[%emt 0:00:30]} Be7 {[%emt 0:00:00] B81: Sicilian Scheveningen: Keres Attack} (7... h6 8. Bg2 g5 9. Be3 Nbd7 10. Qe2 Ne5 11. O-O-O Nfd7 12. h4 Rg8 13. hxg5 hxg5 14. Kb1 b5 15. f4 gxf4 16. Bxf4 Bb7 {½-½ (56) Karjakin,S (2773)-Mamedyarov,S (2801) Saint Louis 2018}) 8. g5 {[%emt 0:02:30]} Nfd7 {[%emt 0:00:00]} 9. Be3 {[%emt 0:00:00]} Nc6 {[%emt 0:02:30]} 10. h4 {[%emt 0:01:00]} Qc7 {[%emt 0:02:30]} 11. h5 {[%emt 0:05:30]} Nce5 {[%emt 0:14:30]} 12. f4 {[%emt 0:11:30]} Nc4 {[%emt 0:01:30]} 13. Bxc4 {[%emt 0:01:30]} Qxc4 {[%emt 0:00:00]} 14. Qf3 {[%emt 0:00:30]} b5 {[%emt 0:25:00]} 15. O-O-O {[%emt 0:09:30]} Bb7 $146 {[%emt 0:10:30]} ({Predecessor:} 15... b4 16. e5 d5 17. Nce2 O-O 18. Kb1 Qc7 19. Qg2 Nc5 20. Rdg1 Ne4 21. f5 {1-0 (21) Gerasimov,V (2507)-Stepanov,K (2356) ICCF email 2015}) 16. g6 {[%emt 0:16:30]} O-O-O {[%emt 0:18:30]} 17. gxf7 {[%emt 0:00:30]} b4 {[%emt 0:01:30]} 18. Nb1 {[%emt 0:03:30]} Qxa2 {[%emt 0:02:29]} 19. Nb3 {[%emt 0:09:30]} Bf6 {[%emt 0:07:17]} 20. Bd4 {[%emt 0:02:30]} e5 {[%emt 0:01:00]} 21. fxe5 {[%emt 0:07:30]} dxe5 {[%emt 0:00:35]} 22. Ba7 {[%emt 0:01:30]} Rhf8 {[%emt 0:04:11]} 23. Qe2 {[%emt 0:02:30]} Qa4 {[%emt 0:00:07]} 24. N1d2 {[%emt 0:01:30]} Bg5 $18 {[%emt 0:04:42]} 25. Kb1 {[%emt 0:00:30]} Bxd2 {[%emt 0:01:42]} 26. Nxd2 {[%emt 0:00:30]} Qc6 {[%emt 0:00:36]} 27. Nc4 {[%emt 0:00:30]} Nf6 {[%emt 0:00:34]} 28. Rxd8+ {[%emt 0:01:30]} Rxd8 {[%emt 0:00:58]} 29. Rd1 {[%emt 0:00:30]} Rf8 {[%emt 0:00:16]} 30. Qd3 {[%emt 0:00:45]} Nxe4 {[%emt 0:01:09]} 31. Qh3+ {[%emt 0:03:34]} Kc7 {[%emt 0:00:30]} 32. Nxe5 {[%emt 0:00:19]} Bc8 {[%emt 0:01:16]} 33. Qd3 {[%emt 0:01:18]} Nc5 {[%emt 0:01:07]} 34. Qc4 {[%emt 0:00:18]} 1-0

[Event "World Junior U20 Girls 2018"]
[Site "Gebze"]
[Date "2018.09.08"]
[Round "5"]
[White "Gorti, Akshita"]
[Black "Mahalakshmi, M."]
[Result "1/2-1/2"]
[ECO "E14"]
[WhiteElo "2315"]
[BlackElo "2213"]
[Annotator "NA"]
[PlyCount "115"]
[EventDate "2018.09.05"]
[EventType "swiss"]
[EventCountry "TUR"]
[SourceTitle "playchess.com"]
[Source "ChessBase"]
[SourceQuality "1"]
[TimeControl "40/5400+30:1800+30"]

1. d4 {[%emt 0:00:30]} Nf6 {[%emt 0:00:30]} 2. Nf3 {[%emt 0:00:30]} e6 {[%emt 0:00:30]} 3. e3 {[%emt 0:00:00]} b6 {[%emt 0:00:00]} 4. Bd3 {[%emt 0:00:00]} Bb7 {[%emt 0:00:00]} 5. O-O {[%emt 0:00:30]} d5 {[%emt 0:01:30]} 6. c4 {[%emt 0:01:30]} Bd6 {[%emt 0:00:30]} 7. b3 {[%emt 0:00:30]} O-O {[%emt 0:00:30]} 8. Nc3 {[%emt 0:00:30]} Nbd7 {[%emt 0:00:30]} 9. Bb2 {[%emt 0:00:30]} a6 {[%emt 0:00:30]} 10. Rc1 {[%emt 0:00:30]} Qe7 {[%emt 0:00:30]} 11. Na4 {[%emt 0:01:30]} dxc4 {[%emt 0:02:30]} 12. bxc4 {[%emt 0:00:30]} Rad8 {[%emt 0:01:30] E14: Queen's Indian: Classical Variation (4 e3)} (12... c5 13. Ne5 Rfd8 14. Qe2 cxd4 15. exd4 Ba3 16. Nxd7 Qxd7 17. Bxa3 Qxa4 18. Bb2 Qc6 19. f3 b5 20. cxb5 {1-0 (58) Marin,M (2544)-Nevednichy,V (2525) Porto Mannu 2018}) 13. Ne5 $146 {[%emt 0:17:30]} ({Predecessor:} 13. Qc2 Ba3 14. Be2 e5 15. Bxa3 Qxa3 16. Nxe5 Nxe5 17. dxe5 Ne4 18. Rfd1 Rxd1+ 19. Rxd1 Bc6 20. Nb2 {½-½ (51) Celen,F (2304)-Zundel,W (2329) ICCF email 2008}) 13... Bxe5 {[%emt 0:04:30]} 14. dxe5 {[%emt 0:00:00]} Ne4 {[%emt 0:00:00]} 15. Qc2 {[%emt 0:18:00]} Qh4 {[%emt 0:03:00]} 16. Bd4 {[%emt 0:12:30]} Nec5 {[%emt 0:17:30]} 17. Bxc5 {[%emt 0:03:30]} Nxc5 {[%emt 0:07:30]} 18. Nxc5 {[%emt 0:00:30]} bxc5 {[%emt 0:01:30]} 19. f4 {[%emt 0:01:30]} Rd7 {[%emt 0:05:30]} 20. Rcd1 {[%emt 0:05:30]} Rfd8 {[%emt 0:05:30]} 21. Be2 {[%emt 0:01:30]} g6 {[%emt 0:01:30]} 22. Rxd7 {[%emt 0:06:30]} Rxd7 {[%emt 0:00:30]} 23. Rd1 {[%emt 0:00:30]} Be4 {[%emt 0:04:30]} 24. Qa4 {[%emt 0:00:30]} Rd2 {[%emt 0:03:30]} 25. Rxd2 {[%emt 0:07:30]} Qe1+ {[%emt 0:00:30]} 26. Bf1 {[%emt 0:00:30]} Qxd2 {[%emt 0:00:00]} 27. Qa3 {[%emt 0:01:18]} Qe1 {[%emt 0:03:00]} 28. Qb3 {[%emt 0:01:03]} Kg7 {[%emt 0:01:30]} 29. a3 {[%emt 0:01:22]} a5 {[%emt 0:03:30]} 30. a4 {[%emt 0:00:04]} h5 {[%emt 0:02:30]} 31. Qa3 {[%emt 0:01:09]} Bc2 {[%emt 0:03:30]} 32. h3 {[%emt 0:02:12]} h4 {[%emt 0:07:30]} 33. Qxc5 {[%emt 0:02:42]} Bd3 {[%emt 0:00:51]} 34. Qe7 {[%emt 0:00:34]} Bxf1 {[%emt 0:05:01]} 35. Qf6+ {[%emt 0:01:51]} Kg8 {[%emt 0:00:28]} 36. Qd8+ {[%emt 0:00:20]} Kg7 {[%emt 0:02:04]} 37. Qf6+ {[%emt 0:00:09]} Kg8 {[%emt 0:00:40]} 38. Qd8+ {[%emt 0:00:30]} Kh7 {[%emt 0:00:00]} 39. Qf6 {[%emt 0:01:31]} Bxc4+ {[%emt 0:12:20]} 40. Kh2 {[%emt 0:00:00]} Qg3+ {[%emt 0:00:00]} 41. Kh1 {[%emt 0:00:45]} Kg8 {[%emt 0:11:06]} 42. Qd8+ {[%emt 0:00:30]} Kh7 {[%emt 0:00:00]} 43. Qf6 {[%emt 0:00:30]} Qe1+ {[%emt 0:00:00]} 44. Kh2 {[%emt 0:00:00]} Qb4 {[%emt 0:00:30]} 45. Qxf7+ {[%emt 0:01:00]} Kh8 {[%emt 0:06:07]} 46. Qf6+ {[%emt 0:03:30]} Kg8 {[%emt 0:00:42]} 47. Qxg6+ {[%emt 0:04:30]} Kf8 {[%emt 0:00:09]} 48. Qh7 {[%emt 0:12:30]} Qxa4 {[%emt 0:10:37]} 49. Qxc7 {[%emt 0:00:30]} Bd5 {[%emt 0:01:15]} 50. Qd8+ {[%emt 0:00:30]} Qe8 {[%emt 0:02:29]} 51. Qxa5 {[%emt 0:02:30]} Qg6 {[%emt 0:00:54]} 52. Qd2 $17 {[%emt 0:00:30]} (52. Qd8+ $11 {remains equal.} Kg7 53. Qe7+ Kg8 54. Qd8+ Kg7 55. Qe7+ Kg8 56. Qd8+ Kg7) 52... Qg3+ {[%emt 0:02:14]} 53. Kg1 {[%emt 0:00:30]} Kg7 {[%emt 0:00:30]} 54. Qe2 {[%emt 0:00:30]} Be4 {[%emt 0:01:04]} 55. Qd2 {[%emt 0:00:30]} Kh6 {[%emt 0:00:21]} 56. Qe2 {[%emt 0:00:30]} Kg7 {[%emt 0:00:21]} 57. Qd2 {[%emt 0:00:30]} Kh6 {[%emt 0:00:45]} 58. Qe2 {[%emt 0:00:00]} 1/2-1/2

[Event "World Junior U20 Girls 2018"]
[Site "Gebze"]
[Date "2018.09.08"]
[Round "5"]
[White "Unuk, Laura"]
[Black "Pychova, Nela"]
[Result "1-0"]
[ECO "E01"]
[WhiteElo "2299"]
[BlackElo "2173"]
[Annotator "NA"]
[PlyCount "89"]
[EventDate "2018.09.05"]
[EventType "swiss"]
[EventCountry "TUR"]
[SourceTitle "playchess.com"]
[Source "ChessBase"]
[SourceQuality "1"]
[TimeControl "40/5400+30:1800+30"]

1. d4 {[%emt 0:03:30]} Nf6 {[%emt 0:13:30]} 2. c4 {[%emt 0:00:30]} e6 {[%emt 0:00:30]} 3. Nf3 {[%emt 0:00:30]} d5 {[%emt 0:00:30]} 4. g3 {[%emt 0:00:30]} Bb4+ {[%emt 0:00:30]} 5. Bd2 {[%emt 0:00:30]} Bd6 {[%emt 0:00:30]} 6. Nc3 {[%emt 0:00:30]} c6 {[%emt 0:00:30]} 7. Qc2 {[%emt 0:00:30]} O-O {[%emt 0:00:30]} 8. e4 {[%emt 0:00:30]} dxe4 {[%emt 0:14:30]} 9. Nxe4 {[%emt 0:01:30]} Nxe4 {[%emt 0:00:30]} 10. Qxe4 {[%emt 0:00:00]} f5 {[%emt 0:00:00]} 11. Qe2 {[%emt 0:08:00]} Re8 $16 {[%emt 0:05:00]} 12. Bg2 {[%emt 0:01:30]} Nd7 {[%emt 0:02:30]} 13. Bc3 {[%emt 0:04:30]} Nf6 {[%emt 0:07:30]} 14. Ne5 {[%emt 0:00:30]} Bd7 {[%emt 0:02:30]} 15. O-O {[%emt 0:00:30]} Re7 {[%emt 0:00:30]} 16. Rad1 {[%emt 0:06:30]} Be8 {[%emt 0:02:30]} 17. h3 {[%emt 0:00:30]} Qc7 {[%emt 0:05:30]} 18. g4 {[%emt 0:08:30]} Rd8 {[%emt 0:04:30]} 19. Rfe1 {[%emt 0:07:30]} b5 {[%emt 0:09:30]} 20. b3 {[%emt 0:06:30]} b4 {[%emt 0:07:30]} 21. Bb2 {[%emt 0:09:30]} a5 {[%emt 0:00:30]} 22. Qf3 {[%emt 0:01:30]} c5 {[%emt 0:07:43]} 23. dxc5 {[%emt 0:10:30]} Bxc5 {[%emt 0:03:19]} 24. gxf5 {[%emt 0:07:30]} Rxd1 {[%emt 0:03:21]} 25. Rxd1 {[%emt 0:00:31]} exf5 {[%emt 0:01:30]} 26. Qxf5 {[%emt 0:01:29]} Bd6 {[%emt 0:02:46]} 27. Ng4 {[%emt 0:06:08]} Nxg4 {[%emt 0:01:41]} 28. Bd5+ {[%emt 0:00:28]} Bf7 {[%emt 0:00:22]} 29. hxg4 {[%emt 0:00:16]} h6 {[%emt 0:02:18]} 30. Be4 {[%emt 0:02:14]} Kf8 {[%emt 0:01:26]} 31. Rd3 {[%emt 0:09:38]} Qc5 {[%emt 0:01:03]} 32. Bxg7+ {[%emt 0:01:03]} Kxg7 {[%emt 0:00:26]} 33. Qh7+ {[%emt 0:00:21]} Kf8 {[%emt 0:00:33]} 34. Qh8+ {[%emt 0:01:40]} Bg8 {[%emt 0:00:03]} 35. Bd5 {[%emt 0:01:04]} Re1+ {[%emt 0:01:12]} 36. Kg2 {[%emt 0:00:08]} Re2 {[%emt 0:00:09]} 37. Rf3+ {[%emt 0:00:42]} Ke7 {[%emt 0:00:24]} 38. Qxg8 {[%emt 0:00:36]} Kd7 {[%emt 0:00:30]} 39. Rf7+ {[%emt 0:00:38]} Be7 {[%emt 0:00:37]} 40. Qg6 {[%emt 0:00:00]} a4 {[%emt 0:00:00]} 41. bxa4 {[%emt 0:09:34]} Rxa2 {[%emt 0:03:37]} 42. Qf5+ {[%emt 0:00:30]} Kd8 {[%emt 0:04:30]} 43. Rg7 {[%emt 0:01:30]} b3 {[%emt 0:10:45]} 44. Rg8+ {[%emt 0:00:30]} Kc7 {[%emt 0:00:05]} 45. Qc8+ {[%emt 0:01:30]} 1-0

[Event "World Junior U20 Girls 2018"]
[Site "Gebze"]
[Date "2018.09.08"]
[Round "5"]
[White "Antova, Gabriela"]
[Black "Chu, Ruotong"]
[Result "1-0"]
[ECO "D24"]
[WhiteElo "2292"]
[BlackElo "2199"]
[Annotator "NA"]
[PlyCount "193"]
[EventDate "2018.09.05"]
[EventType "swiss"]
[EventCountry "TUR"]
[SourceTitle "playchess.com"]
[Source "ChessBase"]
[SourceQuality "1"]
[TimeControl "40/5400+30:1800+30"]

1. d4 {[%emt 0:00:30]} d5 {[%emt 0:05:30]} 2. Nf3 {[%emt 0:00:00]} Nf6 {[%emt 0:00:30]} 3. c4 {[%emt 0:00:00]} dxc4 {[%emt 0:00:30]} 4. Nc3 {[%emt 0:00:00]} Bg4 {[%emt 0:00:30]} 5. Ne5 {[%emt 0:08:00] D24: Queen's Gambit Accepted: 3 Nf3 Nf6 4 Nc3} Bh5 {[%emt 0:09:30]} 6. f3 {[%emt 0:00:30]} Nbd7 {[%emt 0:11:30]} 7. Nxc4 {[%emt 0:00:30]} Nb6 {[%emt 0:00:30]} 8. Ne5 $146 {[%emt 0:01:30]} ({Predecessor:} 8. Na5 Rb8 9. e4 e6 10. a3 Nfd7 11. Be3 Bd6 12. Qd2 {½-½ (48) Andersson,U (2605)-Kavalek,L (2590) Bugojno 1982}) 8... Nfd5 {[%emt 0:05:30]} 9. e4 {[%emt 0:09:30]} Nxc3 {[%emt 0:00:30]} 10. bxc3 {[%emt 0:00:00]} Nd7 {[%emt 0:11:30]} 11. Nd3 {[%emt 0:02:00]} e6 {[%emt 0:01:30]} 12. Nf4 {[%emt 0:07:30]} Bd6 {[%emt 0:06:30]} 13. e5 {[%emt 0:03:30]} Nxe5 {[%emt 0:00:30]} 14. dxe5 {[%emt 0:02:30]} Bxe5 {[%emt 0:00:00]} 15. Qxd8+ {[%emt 0:15:30]} Rxd8 {[%emt 0:01:00]} 16. Ne2 {[%emt 0:00:00]} O-O {[%emt 0:00:00]} 17. Bf4 {[%emt 0:06:00]} Bf6 {[%emt 0:02:00]} 18. Bxc7 {[%emt 0:02:30]} Rc8 {[%emt 0:00:00]} 19. Bd6 {[%emt 0:00:30]} Rfd8 {[%emt 0:00:00]} 20. Rd1 {[%emt 0:01:30]} Bxc3+ {[%emt 0:01:30]} 21. Nxc3 {[%emt 0:00:00]} Rxc3 {[%emt 0:00:00]} 22. Bb4 {[%emt 0:06:00]} Rxd1+ {[%emt 0:01:00]} 23. Kxd1 {[%emt 0:00:00]} Rxf3 {[%emt 0:00:00]} 24. Ke1 {[%emt 0:04:00]} Rf4 {[%emt 0:00:00]} 25. a3 {[%emt 0:00:00]} b6 {[%emt 0:01:30]} 26. Bd3 {[%emt 0:04:00]} Rd4 {[%emt 0:00:30]} 27. Bc2 {[%emt 0:00:30]} Rd5 {[%emt 0:00:30]} 28. Bc3 {[%emt 0:02:30]} Rg5 {[%emt 0:03:30]} 29. Be4 {[%emt 0:04:30]} Rg4 {[%emt 0:00:30]} 30. Bb7 {[%emt 0:00:30]} Ra4 {[%emt 0:05:30] [#]} 31. Bb4 $1 {[%emt 0:06:42]} b5 {[%emt 0:00:00]} 32. Bc6 {[%emt 0:04:55]} Ra6 {[%emt 0:00:00]} 33. Bxb5 {[%emt 0:03:08]} Rb6 {[%emt 0:00:00]} 34. a4 {[%emt 0:01:21]} a6 {[%emt 0:01:00]} 35. Bc5 {[%emt 0:00:06]} Rb7 {[%emt 0:00:30]} 36. Bd3 {[%emt 0:00:27]} Rb2 {[%emt 0:05:30]} 37. Rf1 {[%emt 0:01:25]} Ra2 {[%emt 0:04:30]} 38. Rf4 {[%emt 0:00:55]} g5 {[%emt 0:00:30]} 39. Rb4 {[%emt 0:05:45]} a5 {[%emt 0:00:30]} 40. Rb8+ {[%emt 0:00:41]} Kg7 {[%emt 0:00:00]} 41. Bd4+ {[%emt 0:07:05]} f6 {[%emt 0:01:00]} 42. Rb7+ {[%emt 0:00:30]} Bf7 {[%emt 0:00:00]} 43. Bb5 {[%emt 0:00:30]} Kg6 {[%emt 0:00:00]} 44. Kf1 {[%emt 0:00:30]} Ra3 {[%emt 0:06:30]} 45. Bb2 {[%emt 0:04:30]} Rb3 {[%emt 0:00:30]} 46. Bc1 {[%emt 0:00:40]} f5 {[%emt 0:02:30]} 47. Bd2 {[%emt 0:06:38]} Rb1+ {[%emt 0:00:00]} 48. Ke2 {[%emt 0:00:02]} Rb2 {[%emt 0:00:00]} 49. Ra7 {[%emt 0:01:00]} e5 {[%emt 0:00:30]} 50. g4 {[%emt 0:01:54]} f4 {[%emt 0:01:30]} 51. Bd3+ {[%emt 0:00:30]} Kf6 {[%emt 0:00:00]} 52. Ra6+ {[%emt 0:00:24]} Ke7 {[%emt 0:00:00]} 53. Rxa5 {[%emt 0:01:37]} Kd6 {[%emt 0:00:30]} 54. Rb5 {[%emt 0:02:42]} Ra2 {[%emt 0:00:30]} 55. Rb4 {[%emt 0:01:26]} Bd5 {[%emt 0:05:30]} 56. a5 {[%emt 0:02:52]} Kc5 {[%emt 0:00:30]} 57. Rb5+ {[%emt 0:01:34]} Kd4 {[%emt 0:01:30]} 58. Rb4+ {[%emt 0:01:29]} Kc5 {[%emt 0:00:00]} 59. Rb8 {[%emt 0:00:54]} e4 {[%emt 0:02:00]} 60. Bb1 {[%emt 0:00:20]} Ra4 {[%emt 0:04:30]} 61. Rc8+ {[%emt 0:00:25]} Kd6 {[%emt 0:00:30]} 62. Bc2 {[%emt 0:00:33]} Ra1 {[%emt 0:06:30]} 63. Bb4+ {[%emt 0:00:14]} Kd7 {[%emt 0:00:00]} 64. Rc5 {[%emt 0:00:27]} Ke6 {[%emt 0:01:00]} 65. Rc8 {[%emt 0:00:04]} Kd7 {[%emt 0:00:30]} 66. Rh8 {[%emt 0:00:45]} Ra2 {[%emt 0:00:30]} 67. Kd1 {[%emt 0:01:06]} e3 {[%emt 0:02:30]} 68. Rxh7+ {[%emt 0:00:30]} Kc6 {[%emt 0:00:00]} 69. Re7 {[%emt 0:02:16]} f3 {[%emt 0:24:44]} 70. Rxe3 {[%emt 0:00:06]} f2 {[%emt 0:00:23]} 71. Bd3 {[%emt 0:00:42]} Ra1+ {[%emt 0:00:27]} 72. Kd2 {[%emt 0:00:24]} f1=Q {[%emt 0:00:59]} 73. Bxf1 {[%emt 0:00:30]} Rxf1 {[%emt 0:00:03]} 74. Be7 {[%emt 0:01:07]} Rh1 {[%emt 0:00:59]} 75. Rh3 {[%emt 0:00:25]} Rg1 {[%emt 0:00:52]} 76. Rh6+ {[%emt 0:00:41]} Kb5 {[%emt 0:00:39]} 77. h3 {[%emt 0:00:17]} Kxa5 {[%emt 0:03:02]} 78. Bxg5 {[%emt 0:00:08]} Kb5 {[%emt 0:01:31]} 79. Bf6 {[%emt 0:00:35]} Kc5 {[%emt 0:00:42]} 80. g5 {[%emt 0:00:38]} Rg2+ {[%emt 0:00:23]} 81. Ke3 {[%emt 0:00:38]} Kd6 {[%emt 0:00:06]} 82. Bd4+ {[%emt 0:00:03]} Ke7 {[%emt 0:00:39]} 83. h4 {[%emt 0:00:23]} Bf7 {[%emt 0:00:17]} 84. Bc5+ {[%emt 0:01:04]} Ke8 {[%emt 0:00:22]} 85. Kf4 {[%emt 0:00:22]} Rh2 $18 {[%emt 0:00:39]} 86. Ke5 {[%emt 0:00:28]} Rc2 {[%emt 0:01:55]} 87. Rh8+ {[%emt 0:00:37]} Kd7 {[%emt 0:00:04]} 88. Kf6 {[%emt 0:00:10]} Bd5 {[%emt 0:01:01]} 89. Bd4 {[%emt 0:00:34]} Rd2 {[%emt 0:00:04]} 90. Bc3 {[%emt 0:01:34]} Rd3 {[%emt 0:00:04]} 91. Ba1 {[%emt 0:00:04]} Rf3+ {[%emt 0:00:05]} 92. Kg7 {[%emt 0:00:45]} Rf5 {[%emt 0:01:40]} 93. Bf6 {[%emt 0:00:13]} Bc6 {[%emt 0:00:18]} 94. h5 {[%emt 0:00:24]} Ke6 {[%emt 0:00:02]} 95. Rc8 {[%emt 0:00:13]} Be4 {[%emt 0:01:21]} 96. Re8+ {[%emt 0:00:11]} Kd5 {[%emt 0:00:02]} 97. h6 {[%emt 0:00:54]} 1-0

[Event "World Junior U20 Girls 2018"]
[Site "Gebze"]
[Date "2018.09.08"]
[Round "5"]
[White "Chitlange Sakshi"]
[Black "Meenal Gupta"]
[Result "1/2-1/2"]
[ECO "E16"]
[WhiteElo "2279"]
[BlackElo "1963"]
[Annotator "NA"]
[PlyCount "189"]
[EventDate "2018.09.05"]
[EventType "swiss"]
[EventCountry "TUR"]
[SourceTitle "playchess.com"]
[Source "ChessBase"]
[SourceQuality "1"]
[TimeControl "40/5400+30:1800+30"]

1. d4 {[%emt 0:00:30]} Nf6 {[%emt 0:00:30]} 2. c4 {[%emt 0:00:00]} e6 {[%emt 0:00:30]} 3. Nf3 {[%emt 0:00:00]} Bb4+ {[%emt 0:00:00]} 4. Bd2 {[%emt 0:01:30]} Qe7 {[%emt 0:00:00]} 5. g3 {[%emt 0:00:30]} b6 {[%emt 0:08:30]} 6. Bg2 {[%emt 0:03:30]} Bb7 {[%emt 0:00:00]} 7. O-O {[%emt 0:03:30]} Bxd2 {[%emt 0:05:00]} 8. Qxd2 {[%emt 0:01:30]} d6 {[%emt 0:05:30]} 9. Rd1 {[%emt 0:08:30] E16: Queen's Indian: 4 g3 Bb7 5 Bg2 Bb4+} (9. d5 e5 10. Nc3 a5 11. Nh4 Bc8 12. e4 O-O 13. Rae1 Nh5 14. Nf5 Bxf5 15. exf5 Nf6 16. f4 Nbd7 {½-½ (25) Bluebaum,M (2633)-Fedorchuk,S (2637) Brest 2018}) 9... Nbd7 {[%emt 0:03:30]} 10. Nc3 {[%emt 0:00:30]} Ne4 $146 {[%emt 0:13:30]} ({Predecessor:} 10... O-O 11. Rac1 a6 12. a3 Rab8 13. b4 Rfd8 14. d5 e5 15. e4 Nf8 16. Nh4 g6 17. Qe2 {1-0 (49) Kraidman,Y (2307)-Nietsch,H (2078) Halle 2004}) 11. Nxe4 {[%emt 0:06:30]} Bxe4 {[%emt 0:00:30]} 12. Rac1 {[%emt 0:00:30]} a5 {[%emt 0:00:30]} 13. Qe3 {[%emt 0:00:30]} Bb7 {[%emt 0:09:30]} 14. b3 {[%emt 0:13:30]} O-O {[%emt 0:14:30]} 15. a3 {[%emt 0:01:30]} Rfe8 {[%emt 0:05:30]} 16. Bh3 {[%emt 0:02:30]} Bxf3 {[%emt 0:05:30]} 17. Qxf3 {[%emt 0:00:30]} Ra7 {[%emt 0:00:30]} 18. Qe3 {[%emt 0:04:30]} Rb8 {[%emt 0:05:30]} 19. Bg2 {[%emt 0:02:30]} c5 {[%emt 0:02:01]} 20. Bc6 {[%emt 0:02:30]} Rc7 {[%emt 0:01:41]} 21. Bb5 {[%emt 0:01:30]} Nf6 {[%emt 0:02:27]} 22. Qd2 {[%emt 0:12:30]} cxd4 {[%emt 0:02:38]} 23. Qxd4 {[%emt 0:00:30]} d5 {[%emt 0:00:49]} 24. a4 {[%emt 0:01:30]} e5 {[%emt 0:01:55]} 25. Qh4 {[%emt 0:05:30]} d4 $1 {[%emt 0:03:40]} 26. Rd3 {[%emt 0:01:30]} Nd5 {[%emt 0:03:50]} 27. Qxe7 {[%emt 0:01:30]} Nxe7 {[%emt 0:00:30]} 28. Rcd1 {[%emt 0:00:30]} g6 {[%emt 0:01:12]} 29. e3 {[%emt 0:11:25]} dxe3 {[%emt 0:00:23]} 30. fxe3 {[%emt 0:00:49]} Kg7 {[%emt 0:01:39]} 31. Kf2 {[%emt 0:01:50]} h5 {[%emt 0:03:09]} 32. Kf3 {[%emt 0:03:55]} Nf5 {[%emt 0:00:59]} 33. Rd8 {[%emt 0:02:03]} Rxd8 {[%emt 0:01:25]} 34. Rxd8 {[%emt 0:00:01]} e4+ {[%emt 0:00:21]} 35. Ke2 {[%emt 0:00:52]} Rb7 {[%emt 0:00:20]} 36. Bc6 {[%emt 0:01:03]} Re7 {[%emt 0:00:04]} 37. Rb8 {[%emt 0:00:45]} Re6 {[%emt 0:00:03]} 38. Bd5 {[%emt 0:00:53]} Rd6 {[%emt 0:00:11]} 39. Bxe4 {[%emt 0:00:00]} Ne7 {[%emt 0:00:39]} 40. Rb7 {[%emt 0:03:14]} Kf6 {[%emt 0:00:00]} 41. Rc7 {[%emt 0:03:40]} Re6 {[%emt 0:03:15]} 42. Bd5 {[%emt 0:04:30]} Nxd5 {[%emt 0:04:30]} 43. cxd5 {[%emt 0:00:30]} Rd6 {[%emt 0:00:30]} 44. Rb7 {[%emt 0:00:30]} Ke5 {[%emt 0:00:30]} 45. Rxf7 {[%emt 0:00:30]} Kxd5 {[%emt 0:00:30]} 46. Rf4 {[%emt 0:00:30]} Ke5 {[%emt 0:00:30]} 47. h4 {[%emt 0:00:30]} b5 {[%emt 0:00:30]} 48. g4 {[%emt 0:13:55]} Rb6 {[%emt 0:06:30]} 49. g5 {[%emt 0:04:12]} bxa4 {[%emt 0:00:00]} 50. bxa4 {[%emt 0:00:11]} Rb2+ {[%emt 0:01:31]} 51. Kf3 {[%emt 0:00:47]} Ra2 {[%emt 0:00:33]} 52. Rc4 {[%emt 0:03:51]} Kd5 {[%emt 0:01:08]} 53. Rd4+ {[%emt 0:00:10]} Ke5 {[%emt 0:00:00]} 54. Rf4 {[%emt 0:00:32]} Ra3 {[%emt 0:00:09]} 55. Re4+ {[%emt 0:01:35]} Kd6 {[%emt 0:02:40]} 56. Kf4 {[%emt 0:00:30]} Ra1 {[%emt 0:00:08]} 57. Rd4+ {[%emt 0:00:19]} Ke6 $1 {[%emt 0:03:33]} 58. Ke4 {[%emt 0:00:18]} Rc1 {[%emt 0:00:39]} 59. Kd3 {[%emt 0:01:06]} Kf5 {[%emt 0:06:01]} 60. Rc4 {[%emt 0:01:35]} Ra1 {[%emt 0:02:47]} 61. Kd4 {[%emt 0:00:50]} Re1 {[%emt 0:00:58]} 62. Kc5 {[%emt 0:02:32]} Rxe3 {[%emt 0:00:08]} 63. Kb6 {[%emt 0:00:30]} Re5 {[%emt 0:00:15]} 64. Rd4 {[%emt 0:00:00]} Ke6 {[%emt 0:01:33]} 65. Rf4 {[%emt 0:00:01]} Kd7 {[%emt 0:00:00]} 66. Rf7+ {[%emt 0:00:38]} Ke8 {[%emt 0:00:15]} 67. Rf6 {[%emt 0:01:14]} Re4 {[%emt 0:00:30]} 68. Kxa5 {[%emt 0:00:00]} Rxh4 {[%emt 0:00:06]} 69. Rxg6 {[%emt 0:00:19]} Rg4 {[%emt 0:00:00]} 70. Kb5 {[%emt 0:01:31]} Kf7 {[%emt 0:02:22]} 71. Rf6+ {[%emt 0:00:30]} Ke7 {[%emt 0:00:00]} 72. Rf5 $11 {[%emt 0:00:19]} (72. Rh6 $1 $14 Rxg5+ 73. Kb6) 72... h4 {[%emt 0:00:00]} 73. g6 {[%emt 0:00:34]} Rxg6 {[%emt 0:00:22]} 74. Rh5 {[%emt 0:00:02]} Kd7 {[%emt 0:00:46]} 75. a5 {[%emt 0:01:23]} Kc7 {[%emt 0:00:08]} 76. Rh7+ {[%emt 0:00:19]} Kb8 {[%emt 0:00:20]} 77. Rxh4 {[%emt 0:00:05]} Rg5+ {[%emt 0:00:20]} 78. Kc6 {[%emt 0:00:05]} Rg6+ {[%emt 0:00:30]} 79. Kb5 {[%emt 0:00:50]} Rg5+ {[%emt 0:00:30]} 80. Kb4 {[%emt 0:00:00]} Kb7 {[%emt 0:01:30]} 81. Rf4 {[%emt 0:00:00]} Rh5 {[%emt 0:00:00]} 82. Rf7+ {[%emt 0:00:40]} Ka6 {[%emt 0:00:16]} 83. Rf6+ {[%emt 0:00:07]} Ka7 {[%emt 0:00:25]} 84. Rc6 {[%emt 0:00:01]} Kb7 {[%emt 0:00:03]} 85. Rf6 {[%emt 0:00:24]} Ka7 {[%emt 0:00:03]} 86. Rg6 {[%emt 0:00:50]} Kb7 {[%emt 0:00:30]} 87. Ka4 {[%emt 0:00:00]} Rh4+ {[%emt 0:00:25]} 88. Kb5 {[%emt 0:00:00]} Rh5+ {[%emt 0:00:00]} 89. Kb4 {[%emt 0:00:00]} Rh4+ {[%emt 0:00:00]} 90. Kb3 {[%emt 0:00:18]} Ka7 {[%emt 0:00:17]} 91. Ka3 {[%emt 0:00:06]} Kb7 {[%emt 0:00:14]} 92. Rb6+ {[%emt 0:00:08]} Ka7 {[%emt 0:00:05]} 93. Rb4 {[%emt 0:00:06]} Rxb4 {[%emt 0:00:09]} 94. Kxb4 {[%emt 0:00:00]} Ka6 {[%emt 0:00:36]} 95. Ka4 {[%emt 0:00:00]} 1/2-1/2